[Event "Late-Titled-Tuesday-Blitz-February-13-2024"]
[Site "Chess.com"]
[Date "2024.02.13"]
[Round "3"]
[White "Sajkochess"]
[Black "Doudou2015"]
[Result "0-1"]
[WhiteElo "2367"]
[BlackElo "2200"]
[TimeControl "180+1"]
[EndTime "14:28:51 PST"]
[Termination "Doudou2015 won by resignation"]

1. e4 {[%clk 0:03:00.9]} 1... c5 {[%clk 0:02:57.2]} 2. Nf3 {[%clk 0:03:00.6]}
2... Nc6 {[%clk 0:02:56.4]} 3. d4 {[%clk 0:03:00.8]} 3... cxd4 {[%clk
0:02:57.3]} 4. Nxd4 {[%clk 0:03:01.4]} 4... e5 {[%clk 0:02:57.7]} 5. Nb5 {[%clk
0:03:01.5]} 5... a6 {[%clk 0:02:56.3]} 6. N5c3 {[%clk 0:03:01.3]} 6... Bc5
{[%clk 0:02:54]} 7. Bc4 {[%clk 0:02:55.5]} 7... d6 {[%clk 0:02:54.1]} 8. O-O
{[%clk 0:02:51.8]} 8... h6 {[%clk 0:02:48.7]} 9. Nd5 {[%clk 0:02:50.7]} 9... Nf6
{[%clk 0:02:46.8]} 10. Nxf6+ {[%clk 0:02:50.8]} 10... Qxf6 {[%clk 0:02:46.1]}
11. Be3 {[%clk 0:02:51.4]} 11... Be6 {[%clk 0:02:41.3]} 12. Bxe6 {[%clk
0:02:41.9]} 12... Qxe6 {[%clk 0:02:36.4]} 13. Nc3 {[%clk 0:02:26]} 13... O-O
{[%clk 0:02:32.1]} 14. Nd5 {[%clk 0:02:22.8]} 14... Rac8 {[%clk 0:02:21.2]} 15.
c3 {[%clk 0:01:50.2]} 15... Ne7 {[%clk 0:02:15.9]} 16. Qb3 {[%clk 0:01:40.8]}
16... Nxd5 {[%clk 0:02:12.5]} 17. exd5 {[%clk 0:01:39.1]} 17... Qe7 {[%clk
0:02:10]} 18. Qc2 {[%clk 0:01:12.4]} 18... f5 {[%clk 0:02:06.7]} 19. Rad1 {[%clk
0:01:07.9]} 19... f4 {[%clk 0:02:02.3]} 20. Bxc5 {[%clk 0:01:07.9]} 20... Rxc5
{[%clk 0:02:03]} 21. Qe4 {[%clk 0:01:07.5]} 21... f3 {[%clk 0:01:55.3]} 22. gxf3
{[%clk 0:01:03.3]} 22... Rf4 {[%clk 0:01:47.9]} 23. Qg6 {[%clk 0:00:58.5]} 23...
Rf6 {[%clk 0:01:32.6]} 24. Qg4 {[%clk 0:00:56.4]} 24... Qf7 {[%clk 0:01:30.8]}
25. Kh1 {[%clk 0:00:56.4]} 25... Rxf3 {[%clk 0:01:28.5]} 26. Qe6 {[%clk
0:00:43.8]} 26... Rf6 {[%clk 0:01:11.7]} 27. Qxf7+ {[%clk 0:00:43.5]} 27... Kxf7
{[%clk 0:01:12.6]} 28. Kg2 {[%clk 0:00:41.7]} 28... Rf4 {[%clk 0:00:59.3]} 29.
f3 {[%clk 0:00:39.1]} 29... b5 {[%clk 0:00:56.8]} 30. Rfe1 {[%clk 0:00:39.3]}
30... b4 {[%clk 0:00:56.6]} 31. Rd3 {[%clk 0:00:31.2]} 31... bxc3 {[%clk
0:00:56]} 32. bxc3 {[%clk 0:00:31.7]} 32... Rfc4 {[%clk 0:00:55.2]} 33. Ree3
{[%clk 0:00:17.9]} 33... Kf6 {[%clk 0:00:55]} 34. Kg3 {[%clk 0:00:18.3]} 34...
Kf5 {[%clk 0:00:54.8]} 35. h4 {[%clk 0:00:18.1]} 35... g5 {[%clk 0:00:54.5]} 36.
hxg5 {[%clk 0:00:17.8]} 36... hxg5 {[%clk 0:00:55.4]} 37. Kf2 {[%clk 0:00:15.4]}
37... Rf4 {[%clk 0:00:52.9]} 38. Ke2 {[%clk 0:00:14.5]} 38... Rb5 {[%clk
0:00:49]} 39. Rd2 {[%clk 0:00:12.7]} 39... Rh4 {[%clk 0:00:45.8]} 40. Kd3 {[%clk
0:00:11]} 40... Rxd5+ {[%clk 0:00:44.4]} 41. Kc2 {[%clk 0:00:11.1]} 41... Rxd2+
{[%clk 0:00:43.5]} 42. Kxd2 {[%clk 0:00:12]} 42... Rh2+ {[%clk 0:00:42.9]} 43.
Kd3 {[%clk 0:00:12.4]} 43... d5 {[%clk 0:00:43]} 44. c4 {[%clk 0:00:12.5]} 44...
dxc4+ {[%clk 0:00:34.6]} 45. Kxc4 {[%clk 0:00:13]} 45... Rxa2 {[%clk 0:00:34]}
46. Kd5 {[%clk 0:00:12]} 46... Ra5+ {[%clk 0:00:33.2]} 47. Kd6 {[%clk 0:00:12]}
47... Kf4 {[%clk 0:00:32.8]} 48. Rb3 {[%clk 0:00:09.9]} 48... Rb5 {[%clk
0:00:24.2]} 49. Rc3 {[%clk 0:00:09.4]} 49... a5 {[%clk 0:00:23.5]} 50. Kc6
{[%clk 0:00:08.2]} 50... Rb4 {[%clk 0:00:23.2]} 51. Kd5 {[%clk 0:00:07.7]} 51...
Rd4+ {[%clk 0:00:22.2]} 52. Ke6 {[%clk 0:00:07.7]} 52... e4 {[%clk 0:00:20.6]}
53. fxe4 {[%clk 0:00:07.8]} 53... Rxe4+ {[%clk 0:00:21.1]} 54. Kf6 {[%clk
0:00:07.6]} 54... g4 {[%clk 0:00:20.9]} 55. Rc5 {[%clk 0:00:04.7]} 55... a4
{[%clk 0:00:17.7]} 56. Rf5+ {[%clk 0:00:03.9]} 56... Ke3 {[%clk 0:00:17.6]} 57.
Kg5 {[%clk 0:00:01.7]} 57... g3 {[%clk 0:00:16.9]} 58. Kh5 {[%clk 0:00:01.9]}
58... g2 {[%clk 0:00:16.6]} 59. Rg5 {[%clk 0:00:02.5]} 59... Kf2 {[%clk
0:00:16.6]} 60. Rf5+ {[%clk 0:00:02.5]} 60... Kg1 {[%clk 0:00:16.1]} 61. Rb5
{[%clk 0:00:02.2]} 61... Kh1 {[%clk 0:00:14]} 0-1

[Event "Late-Titled-Tuesday-Blitz-February-13-2024"]
[Site "Chess.com"]
[Date "2024.02.13"]
[Round "3"]
[White "Rodalquilar"]
[Black "jefferyx"]
[Result "0-1"]
[WhiteElo "2771"]
[BlackElo "3034"]
[TimeControl "180+1"]
[EndTime "14:28:53 PST"]
[Termination "jefferyx won on time"]

1. d4 {[%clk 0:03:00.9]} 1... Nf6 {[%clk 0:03:00]} 2. Nf3 {[%clk 0:03:01.2]}
2... g6 {[%clk 0:02:57.2]} 3. Bf4 {[%clk 0:03:00.9]} 3... Bg7 {[%clk 0:02:57.6]}
4. e3 {[%clk 0:03:01.4]} 4... O-O {[%clk 0:02:57.9]} 5. Be2 {[%clk 0:03:01.9]}
5... c5 {[%clk 0:02:58.1]} 6. c3 {[%clk 0:03:01.2]} 6... Qb6 {[%clk 0:02:56.5]}
7. Qb3 {[%clk 0:03:00.8]} 7... d6 {[%clk 0:02:56.8]} 8. O-O {[%clk 0:03:00.8]}
8... Be6 {[%clk 0:02:57]} 9. Qxb6 {[%clk 0:03:01.1]} 9... axb6 {[%clk
0:02:57.2]} 10. a3 {[%clk 0:03:02]} 10... Nc6 {[%clk 0:02:57.2]} 11. h3 {[%clk
0:03:02]} 11... h6 {[%clk 0:02:56.8]} 12. Bh2 {[%clk 0:03:01.4]} 12... Rfc8
{[%clk 0:02:48.2]} 13. Nbd2 {[%clk 0:03:01.6]} 13... Na5 {[%clk 0:02:48.3]} 14.
Rfe1 {[%clk 0:02:55.9]} 14... Bd5 {[%clk 0:02:11.4]} 15. Bd3 {[%clk 0:02:47.9]}
15... Bc6 {[%clk 0:02:11.4]} 16. e4 {[%clk 0:02:25.3]} 16... cxd4 {[%clk
0:01:54.4]} 17. Nxd4 {[%clk 0:02:19.9]} 17... e5 {[%clk 0:01:38.6]} 18. Nc2
{[%clk 0:02:15.1]} 18... Ba4 {[%clk 0:01:37.5]} 19. Ne3 {[%clk 0:02:12.9]} 19...
h5 {[%clk 0:01:37.2]} 20. Ndc4 {[%clk 0:02:05.8]} 20... Nxc4 {[%clk 0:01:35]}
21. Nxc4 {[%clk 0:01:56.5]} 21... Bb5 {[%clk 0:01:35.1]} 22. Nxe5 {[%clk
0:01:55.4]} 22... Ra5 {[%clk 0:01:08.6]} 23. Bxb5 {[%clk 0:01:37.6]} 23... Rxb5
{[%clk 0:01:09.5]} 24. Nd3 {[%clk 0:01:38]} 24... d5 {[%clk 0:01:10]} 25. e5
{[%clk 0:01:22.7]} 25... Ne4 {[%clk 0:01:10.1]} 26. f3 {[%clk 0:01:12.8]} 26...
Nc5 {[%clk 0:01:10.1]} 27. Nb4 {[%clk 0:01:12.6]} 27... Ne6 {[%clk 0:01:10.3]}
28. Rad1 {[%clk 0:01:09.3]} 28... Rd8 {[%clk 0:01:10.5]} 29. Kf1 {[%clk
0:00:48.5]} 29... Bf8 {[%clk 0:01:10.5]} 30. Bg1 {[%clk 0:00:47.9]} 30... Bc5
{[%clk 0:00:29.3]} 31. Bf2 {[%clk 0:00:35.3]} 31... Kg7 {[%clk 0:00:29.2]} 32.
h4 {[%clk 0:00:34.4]} 32... d4 {[%clk 0:00:26]} 33. c4 {[%clk 0:00:27.6]} 33...
Bxb4 {[%clk 0:00:24]} 34. cxb5 {[%clk 0:00:20.3]} 34... Bxe1 {[%clk 0:00:24.9]}
35. Kxe1 {[%clk 0:00:15.3]} 35... Rd5 {[%clk 0:00:24.7]} 36. a4 {[%clk
0:00:15.5]} 36... Rxe5+ {[%clk 0:00:25]} 37. Kd2 {[%clk 0:00:16]} 37... Rc5
{[%clk 0:00:21.4]} 38. Kd3 {[%clk 0:00:08.4]} 38... Rc8 {[%clk 0:00:18.1]} 39.
b3 {[%clk 0:00:05.2]} 39... Kf6 {[%clk 0:00:15.7]} 40. Kd2 {[%clk 0:00:03.3]}
40... Ke5 {[%clk 0:00:15]} 41. Re1+ {[%clk 0:00:03.5]} 41... Kd5 {[%clk
0:00:15.4]} 42. Re4 {[%clk 0:00:03.8]} 42... Rc7 {[%clk 0:00:08.7]} 43. Bg3
{[%clk 0:00:04.1]} 43... Rc8 {[%clk 0:00:02.9]} 44. Re5+ {[%clk 0:00:04.4]}
44... Kd6 {[%clk 0:00:03.8]} 45. Rxh5+ {[%clk 0:00:04.8]} 45... Ke7 {[%clk
0:00:03.4]} 46. Rd5 {[%clk 0:00:04.7]} 46... Rc3 {[%clk 0:00:03.6]} 47. Rxd4
{[%clk 0:00:04.9]} 47... Rxb3 {[%clk 0:00:04.3]} 48. Re4 {[%clk 0:00:04.6]}
48... Rb2+ {[%clk 0:00:04.6]} 49. Ke3 {[%clk 0:00:04.4]} 49... Rxg2 {[%clk
0:00:05.5]} 50. Bf2 {[%clk 0:00:04.9]} 50... Kd6 {[%clk 0:00:04.4]} 51. Ke2
{[%clk 0:00:04.6]} 51... Nc5 {[%clk 0:00:04.1]} 52. Rd4+ {[%clk 0:00:05.2]}
52... Ke6 {[%clk 0:00:04.6]} 53. Kf1 {[%clk 0:00:05.9]} 53... Rh2 {[%clk
0:00:04.2]} 54. Kg1 {[%clk 0:00:06.4]} 54... Rxf2 {[%clk 0:00:02.9]} 55. Kxf2
{[%clk 0:00:06.9]} 55... Ke5 {[%clk 0:00:03.8]} 56. Rb4 {[%clk 0:00:05.7]} 56...
Nd3+ {[%clk 0:00:03.9]} 0-1

[Event "Late-Titled-Tuesday-Blitz-February-13-2024"]
[Site "Chess.com"]
[Date "2024.02.13"]
[Round "3"]
[White "chegueps"]
[Black "Alex_Sahakyan2006"]
[Result "1-0"]
[WhiteElo "2680"]
[BlackElo "2864"]
[TimeControl "180+1"]
[EndTime "14:28:53 PST"]
[Termination "chegueps won on time"]

1. e4 {[%clk 0:02:56.1]} 1... e5 {[%clk 0:02:58.1]} 2. Nf3 {[%clk 0:02:54.5]}
2... Nc6 {[%clk 0:02:58.7]} 3. Bb5 {[%clk 0:02:51.4]} 3... a6 {[%clk 0:02:59]}
4. Ba4 {[%clk 0:02:51.6]} 4... d6 {[%clk 0:02:59.3]} 5. O-O {[%clk 0:02:49.8]}
5... Bd7 {[%clk 0:02:59.7]} 6. c3 {[%clk 0:02:40.8]} 6... g5 {[%clk 0:02:47.9]}
7. d4 {[%clk 0:02:33.1]} 7... g4 {[%clk 0:02:46.7]} 8. Ne1 {[%clk 0:02:33.3]}
8... h5 {[%clk 0:02:36.9]} 9. Be3 {[%clk 0:02:26.9]} 9... Bg7 {[%clk 0:02:35.4]}
10. Na3 {[%clk 0:02:14.7]} 10... Nge7 {[%clk 0:02:18.3]} 11. Nac2 {[%clk
0:02:05.8]} 11... Ng6 {[%clk 0:02:09.9]} 12. Nd3 {[%clk 0:02:04.6]} 12... Qe7
{[%clk 0:02:02.7]} 13. dxe5 {[%clk 0:01:51.1]} 13... Ncxe5 {[%clk 0:01:55.7]}
14. Bxd7+ {[%clk 0:01:50.6]} 14... Qxd7 {[%clk 0:01:56.3]} 15. Nf4 {[%clk
0:01:49.4]} 15... h4 {[%clk 0:01:52.4]} 16. Nd4 {[%clk 0:01:41.7]} 16... O-O-O
{[%clk 0:01:44.7]} 17. Nf5 {[%clk 0:01:41]} 17... Bf8 {[%clk 0:01:35.6]} 18. Nd5
{[%clk 0:01:36.6]} 18... Qe6 {[%clk 0:01:17.7]} 19. Nd4 {[%clk 0:01:26.5]} 19...
Qe8 {[%clk 0:01:17.5]} 20. Bg5 {[%clk 0:00:53.4]} 20... Be7 {[%clk 0:00:58]} 21.
Bf6 {[%clk 0:00:50.1]} 21... Rh6 {[%clk 0:00:37.1]} 22. Nf5 {[%clk 0:00:46.6]}
22... Bxf6 {[%clk 0:00:22.1]} 23. Nxh6 {[%clk 0:00:37.1]} 23... Bg5 {[%clk
0:00:18.3]} 24. Nxg4 {[%clk 0:00:37.2]} 24... Qe6 {[%clk 0:00:15.8]} 25. Nxe5
{[%clk 0:00:36.6]} 25... dxe5 {[%clk 0:00:16.1]} 26. Qa4 {[%clk 0:00:34.1]}
26... h3 {[%clk 0:00:13.4]} 27. g3 {[%clk 0:00:33.9]} 27... Nh4 {[%clk
0:00:10.6]} 28. Qc4 {[%clk 0:00:31.5]} 28... Nf3+ {[%clk 0:00:09.2]} 29. Kh1
{[%clk 0:00:31.7]} 29... Rd7 {[%clk 0:00:05.1]} 30. Qe2 {[%clk 0:00:27.8]} 30...
Nd2 {[%clk 0:00:03.9]} 31. Rfd1 {[%clk 0:00:26.4]} 31... Rxd5 {[%clk 0:00:02.2]}
32. exd5 {[%clk 0:00:20.5]} 32... Qf5 {[%clk 0:00:01.9]} 33. f4 {[%clk
0:00:16.3]} 33... exf4 {[%clk 0:00:01.2]} 34. Qe8+ {[%clk 0:00:13.3]} 34... Bd8
{[%clk 0:00:01.8]} 35. Rxd2 {[%clk 0:00:14]} 35... fxg3 {[%clk 0:00:02.4]} 36.
hxg3 {[%clk 0:00:12.8]} 36... Qf3+ {[%clk 0:00:01.6]} 37. Kh2 {[%clk 0:00:13.3]}
37... b6 {[%clk 0:00:01.5]} 38. Qe2 {[%clk 0:00:13.5]} 38... Qf5 {[%clk
0:00:01.5]} 39. Rf1 {[%clk 0:00:13.2]} 39... Qg6 {[%clk 0:00:02.1]} 40. Qd3
{[%clk 0:00:12.6]} 40... Qh6 {[%clk 0:00:01.2]} 41. Qf5+ {[%clk 0:00:13]} 41...
Kb8 {[%clk 0:00:01.8]} 42. Qxh3 {[%clk 0:00:13.4]} 42... Qxd2+ {[%clk
0:00:01.7]} 43. Qg2 {[%clk 0:00:14.1]} 43... Qh6+ {[%clk 0:00:02]} 44. Qh3
{[%clk 0:00:13.5]} 44... Qd2+ {[%clk 0:00:02]} 45. Qg2 {[%clk 0:00:13.5]} 45...
Qh6+ {[%clk 0:00:02.1]} 46. Kg1 {[%clk 0:00:13.3]} 46... Be7 {[%clk 0:00:02.1]}
47. b4 {[%clk 0:00:07.6]} 47... Bd6 {[%clk 0:00:02.2]} 48. Rxf7 {[%clk
0:00:05.7]} 48... Qe3+ {[%clk 0:00:02.4]} 49. Qf2 {[%clk 0:00:05]} 49... Qxc3
{[%clk 0:00:02.8]} 50. Rf3 {[%clk 0:00:04.1]} 50... Qc1+ {[%clk 0:00:01.6]} 51.
Kg2 {[%clk 0:00:04.3]} 51... Bxb4 {[%clk 0:00:02]} 52. d6 {[%clk 0:00:03.5]}
52... Bxd6 {[%clk 0:00:01.7]} 53. Re3 {[%clk 0:00:03.5]} 53... Qc6+ {[%clk
0:00:01.1]} 54. Qf3 {[%clk 0:00:04.1]} 54... Qc2+ {[%clk 0:00:01.5]} 55. Re2
{[%clk 0:00:04.2]} 1-0

[Event "Late-Titled-Tuesday-Blitz-February-13-2024"]
[Site "Chess.com"]
[Date "2024.02.13"]
[Round "3"]
[White "BilodeauA"]
[Black "ChessSkool"]
[Result "1-0"]
[WhiteElo "2950"]
[BlackElo "2714"]
[TimeControl "180+1"]
[EndTime "14:28:54 PST"]
[Termination "BilodeauA won on time"]

1. e4 {[%clk 0:02:56.6]} 1... c6 {[%clk 0:02:59.9]} 2. d4 {[%clk 0:02:53.3]}
2... d5 {[%clk 0:03:00.8]} 3. e5 {[%clk 0:02:54]} 3... Bf5 {[%clk 0:03:00.1]} 4.
Nf3 {[%clk 0:02:54.3]} 4... e6 {[%clk 0:02:55.3]} 5. Be2 {[%clk 0:02:54.4]} 5...
Nd7 {[%clk 0:02:55.8]} 6. O-O {[%clk 0:02:54.5]} 6... a5 {[%clk 0:02:56.5]} 7.
Nc3 {[%clk 0:02:50.2]} 7... Bb4 {[%clk 0:02:33.1]} 8. Bd2 {[%clk 0:02:46.5]}
8... f6 {[%clk 0:02:33.3]} 9. a3 {[%clk 0:02:36.7]} 9... Bxc3 {[%clk 0:02:33.4]}
10. Bxc3 {[%clk 0:02:33]} 10... fxe5 {[%clk 0:02:27.7]} 11. Nxe5 {[%clk
0:02:31.2]} 11... Nxe5 {[%clk 0:02:27.4]} 12. dxe5 {[%clk 0:02:32.1]} 12... Ne7
{[%clk 0:02:25.9]} 13. Bd4 {[%clk 0:02:24.6]} 13... b6 {[%clk 0:02:19.7]} 14. b4
{[%clk 0:02:21.2]} 14... O-O {[%clk 0:02:18.3]} 15. Qd2 {[%clk 0:02:15.4]} 15...
Qc7 {[%clk 0:02:15.2]} 16. Qe3 {[%clk 0:01:50.1]} 16... Rfb8 {[%clk 0:02:01.1]}
17. c3 {[%clk 0:01:47.7]} 17... Bg6 {[%clk 0:01:53]} 18. g4 {[%clk 0:01:48]}
18... h6 {[%clk 0:00:49.2]} 19. h4 {[%clk 0:01:47.5]} 19... Bh7 {[%clk 0:00:42]}
20. h5 {[%clk 0:01:47.7]} 20... Kh8 {[%clk 0:00:41.6]} 21. Kh2 {[%clk
0:01:42.8]} 21... Rb7 {[%clk 0:00:37.5]} 22. c4 {[%clk 0:01:13.1]} 22... dxc4
{[%clk 0:00:31.5]} 23. Bxc4 {[%clk 0:01:14]} 23... Nd5 {[%clk 0:00:31.8]} 24.
Bxd5 {[%clk 0:01:10.4]} 24... cxd5 {[%clk 0:00:32.4]} 25. Rac1 {[%clk
0:01:09.3]} 25... Qd7 {[%clk 0:00:24.8]} 26. Rc3 {[%clk 0:01:04.1]} 26... axb4
{[%clk 0:00:24.6]} 27. axb4 {[%clk 0:01:03.9]} 27... Rc7 {[%clk 0:00:19.1]} 28.
Rfc1 {[%clk 0:00:58.2]} 28... Rac8 {[%clk 0:00:18.3]} 29. Bxb6 {[%clk
0:00:43.8]} 29... Rxc3 {[%clk 0:00:17.9]} 30. Rxc3 {[%clk 0:00:44.7]} 30... Rxc3
{[%clk 0:00:17.6]} 31. Qxc3 {[%clk 0:00:45.6]} 31... Qe7 {[%clk 0:00:16.8]} 32.
Kg3 {[%clk 0:00:42.7]} 32... Bg8 {[%clk 0:00:07.9]} 33. Bd4 {[%clk 0:00:38.8]}
33... Bf7 {[%clk 0:00:07]} 34. b5 {[%clk 0:00:38.6]} 34... Qb7 {[%clk
0:00:04.9]} 35. b6 {[%clk 0:00:38.4]} 35... Be8 {[%clk 0:00:05.6]} 36. Qc7
{[%clk 0:00:35.1]} 36... Bc6 {[%clk 0:00:06.1]} 37. f3 {[%clk 0:00:24.9]} 37...
Qa8 {[%clk 0:00:05.9]} 38. Qd6 {[%clk 0:00:23.3]} 38... Qc8 {[%clk 0:00:05.4]}
39. Bc5 {[%clk 0:00:21.8]} 39... Kg8 {[%clk 0:00:05]} 40. Qc7 {[%clk 0:00:21.4]}
40... Bb7 {[%clk 0:00:04.7]} 41. Kf2 {[%clk 0:00:13.3]} 41... Qxc7 {[%clk
0:00:02.8]} 42. bxc7 {[%clk 0:00:14.2]} 42... Kf7 {[%clk 0:00:02.9]} 43. Ke3
{[%clk 0:00:14.7]} 43... g6 {[%clk 0:00:02.6]} 44. Kd4 {[%clk 0:00:13.3]} 44...
gxh5 {[%clk 0:00:03]} 45. gxh5 {[%clk 0:00:14.2]} 45... Ke8 {[%clk 0:00:03.6]}
46. Bd6 {[%clk 0:00:13.3]} 46... Kd7 {[%clk 0:00:03.6]} 47. Kc5 {[%clk 0:00:14]}
47... Ba6 {[%clk 0:00:03]} 48. f4 {[%clk 0:00:14.1]} 48... Bd3 {[%clk
0:00:03.4]} 49. Kb6 {[%clk 0:00:13.4]} 49... Kc8 {[%clk 0:00:03.1]} 50. Bf8
{[%clk 0:00:13.5]} 50... Be2 {[%clk 0:00:03.3]} 51. f5 {[%clk 0:00:12.3]} 51...
exf5 {[%clk 0:00:03.3]} 52. e6 {[%clk 0:00:12.8]} 52... Bxh5 {[%clk 0:00:03.9]}
53. Bxh6 {[%clk 0:00:10.8]} 53... d4 {[%clk 0:00:04.6]} 54. Kc6 {[%clk
0:00:10.6]} 54... d3 {[%clk 0:00:04.8]} 55. Kd6 {[%clk 0:00:11.1]} 55... Bg6
{[%clk 0:00:04.8]} 56. Bf4 {[%clk 0:00:11]} 56... Be8 {[%clk 0:00:04.7]} 57. Ke7
{[%clk 0:00:11.2]} 57... Bh5 {[%clk 0:00:04.3]} 58. Kd6 {[%clk 0:00:10.3]} 58...
Be8 {[%clk 0:00:04.1]} 59. e7 {[%clk 0:00:11]} 59... Bf7 {[%clk 0:00:04.4]} 60.
Ke5 {[%clk 0:00:11.4]} 60... Kxc7 {[%clk 0:00:04.1]} 61. Kf6+ {[%clk 0:00:12]}
1-0

[Event "Late-Titled-Tuesday-Blitz-February-13-2024"]
[Site "Chess.com"]
[Date "2024.02.13"]
[Round "3"]
[White "Heinza9"]
[Black "combidharma"]
[Result "1/2-1/2"]
[WhiteElo "2280"]
[BlackElo "2696"]
[TimeControl "180+1"]
[EndTime "14:28:54 PST"]
[Termination "Game drawn by repetition"]

1. e4 {[%clk 0:03:00.9]} 1... c5 {[%clk 0:02:59.8]} 2. Nf3 {[%clk 0:03:00.4]}
2... g6 {[%clk 0:02:55.7]} 3. c3 {[%clk 0:02:59.9]} 3... d5 {[%clk 0:02:52.7]}
4. exd5 {[%clk 0:03:00.1]} 4... Qxd5 {[%clk 0:02:53.6]} 5. d4 {[%clk 0:03:00.4]}
5... Nf6 {[%clk 0:02:40.8]} 6. dxc5 {[%clk 0:02:59.2]} 6... Qxc5 {[%clk
0:02:29.4]} 7. Be3 {[%clk 0:02:59.2]} 7... Qc7 {[%clk 0:02:27.7]} 8. Be2 {[%clk
0:02:56.4]} 8... Nc6 {[%clk 0:02:25.3]} 9. h3 {[%clk 0:02:56.1]} 9... Bg7 {[%clk
0:02:24.4]} 10. O-O {[%clk 0:02:55.7]} 10... O-O {[%clk 0:02:24.1]} 11. Nbd2
{[%clk 0:02:54.1]} 11... Bf5 {[%clk 0:02:18.6]} 12. Nd4 {[%clk 0:02:49.3]} 12...
Nxd4 {[%clk 0:02:17.1]} 13. cxd4 {[%clk 0:02:49.7]} 13... Rfd8 {[%clk 0:02:15]}
14. Bf3 {[%clk 0:02:47]} 14... Nd5 {[%clk 0:02:13.1]} 15. Rc1 {[%clk 0:02:44]}
15... Qd7 {[%clk 0:02:11.2]} 16. a3 {[%clk 0:02:41.4]} 16... Rac8 {[%clk
0:02:08.5]} 17. Qb3 {[%clk 0:02:40.1]} 17... Nb6 {[%clk 0:02:04.1]} 18. Rxc8
{[%clk 0:02:27]} 18... Rxc8 {[%clk 0:02:05]} 19. d5 {[%clk 0:02:24.1]} 19... Bc2
{[%clk 0:02:01.1]} 20. Qb4 {[%clk 0:02:18.8]} 20... Nxd5 {[%clk 0:02:00.1]} 21.
Bxd5 {[%clk 0:02:18.9]} 21... Qxd5 {[%clk 0:02:01]} 22. Bxa7 {[%clk 0:02:13.2]}
22... e6 {[%clk 0:01:29.6]} 23. Be3 {[%clk 0:02:07.3]} 23... Bd3 {[%clk
0:01:14.1]} 24. Re1 {[%clk 0:02:04.2]} 24... Rc2 {[%clk 0:01:11.1]} 25. Nf3
{[%clk 0:01:32.9]} 25... Rxb2 {[%clk 0:01:07.7]} 26. Qh4 {[%clk 0:01:32.6]}
26... Rb1 {[%clk 0:00:47.1]} 27. Rxb1 {[%clk 0:01:30.4]} 27... Bxb1 {[%clk
0:00:48]} 28. Qe7 {[%clk 0:01:18.1]} 28... Bf8 {[%clk 0:00:40]} 29. Qe8 {[%clk
0:01:15.5]} 29... Qd1+ {[%clk 0:00:31.6]} 30. Kh2 {[%clk 0:01:15]} 30... Qd6+
{[%clk 0:00:32.5]} 31. g3 {[%clk 0:01:12.9]} 31... Be4 {[%clk 0:00:30.4]} 32.
Ng5 {[%clk 0:01:09.3]} 32... Qe7 {[%clk 0:00:05.2]} 33. Qxe7 {[%clk 0:01:08.7]}
33... Bxe7 {[%clk 0:00:06.1]} 34. Nxe4 {[%clk 0:01:09]} 34... Bxa3 {[%clk
0:00:07]} 35. Bc5 {[%clk 0:01:05.8]} 35... Bb2 {[%clk 0:00:06.2]} 36. f4 {[%clk
0:01:01.5]} 36... f6 {[%clk 0:00:02.3]} 37. Nd6 {[%clk 0:00:59.5]} 37... e5
{[%clk 0:00:02.5]} 38. Nxb7 {[%clk 0:00:57.3]} 38... Kf7 {[%clk 0:00:02.7]} 39.
Kg2 {[%clk 0:00:56.6]} 39... Ke6 {[%clk 0:00:03.3]} 40. fxe5 {[%clk 0:00:54.8]}
40... fxe5 {[%clk 0:00:03.3]} 41. Kf3 {[%clk 0:00:54.7]} 41... Kd5 {[%clk
0:00:04.2]} 42. Bf8 {[%clk 0:00:52.2]} 42... e4+ {[%clk 0:00:04.5]} 43. Ke2
{[%clk 0:00:49.5]} 43... Be5 {[%clk 0:00:04.6]} 44. g4 {[%clk 0:00:49.1]} 44...
Bd4 {[%clk 0:00:04.9]} 45. Nd8 {[%clk 0:00:45.9]} 45... Be5 {[%clk 0:00:03]} 46.
Nf7 {[%clk 0:00:45.3]} 46... Bf6 {[%clk 0:00:03.3]} 47. g5 {[%clk 0:00:44]}
47... Bc3 {[%clk 0:00:03]} 48. h4 {[%clk 0:00:42.7]} 48... Ke6 {[%clk
0:00:03.3]} 49. Nh6 {[%clk 0:00:42.3]} 49... Bd4 {[%clk 0:00:02.2]} 50. Bb4
{[%clk 0:00:41.1]} 50... Bb6 {[%clk 0:00:02.4]} 51. Bc3 {[%clk 0:00:39.6]} 51...
Ba7 {[%clk 0:00:02.8]} 52. Ng4 {[%clk 0:00:36.7]} 52... Kf5 {[%clk 0:00:03.7]}
53. Ne3+ {[%clk 0:00:36.4]} 53... Kf4 {[%clk 0:00:03.4]} 54. Bd2 {[%clk
0:00:33.8]} 54... Kg3 {[%clk 0:00:03.3]} 55. h5 {[%clk 0:00:23.2]} 55... gxh5
{[%clk 0:00:02.8]} 56. Nf5+ {[%clk 0:00:23.3]} 56... Kg4 {[%clk 0:00:03.4]} 57.
Nh6+ {[%clk 0:00:22.5]} 57... Kg3 {[%clk 0:00:03.4]} 58. Nf5+ {[%clk 0:00:19.9]}
58... Kg4 {[%clk 0:00:03.1]} 59. Nh6+ {[%clk 0:00:19.7]} 59... Kh3 {[%clk
0:00:02.4]} 60. Nf5 {[%clk 0:00:17]} 60... Kg4 {[%clk 0:00:02.4]} 1/2-1/2